bitfinex/quotes_ETHUSD_20241122
["timestamp","ask_amount","ask_price","bid_price","bid_amount"]
[1732286819720,3.03744,3292.3,3290.8,0.8247]
[1732286819872,3.03791,3291.8,3290.8,0.8247]
[1732286820068,3.03794,3291.7,3290.8,0.8247]
[1732286820305,3.303744,3292.2,3290.8,0.8247]
[1732286820509,3.303744,3292.2,3291.1,0.55]
[1732286820510,0.303744,3292.2,3291.1,0.55]
[1732286820682,3.03801,3291.7,3291.2,0.8166]
[1732286820883,0.303801,3291.6,3291.2,0.8166]
[1732286821114,3.03868,3290.9,3290.7,0.8166]
[1732286821279,3.03856,3291.1,3290.7,0.8166]
[1732286822118,3.03877,3290.8,3290.3,0.8166]
[1732286822316,3.03882,3290.8,3290.3,0.8166]
[1732286822520,3.03865,3291.0,3290.3,0.8166]
[1732286822726,3.0388,3290.8,3290.3,0.8166]
[1732286823033,0.303865,3290.9,3290.3,0.8166]
[1732286823334,0.303865,3290.9,3289.2,0.1475352]
[1732286823335,3.03935,3290.2,3289.3,0.8201]
[1732286823538,3.03988,3289.7,3289.3,0.8201]
[1732286824237,0.7716,3290.7,3289.3,0.8201]
[1732286824409,3.03945,3290.1,3289.3,0.8201]
[1732286824607,3.0,3290.4,3289.3,0.8201]
[1732286824818,3.03943,3290.1,3289.3,0.8201]
[1732286825127,3.03998,3289.5,3289.3,0.8201]
[1732286825337,3.344058,3289.4,3289.3,0.8201]
[1732286825540,3.04016,3289.3,3289.2,0.1475352]
[1732286825689,3.04001,3289.5,3289.2,0.1475352]
[1732286825895,3.03979,3289.7,3289.2,0.1475352]
[1732286826096,3.41619,3290.6,3289.2,0.1475352]
[1732286826292,3.03832,3291.3,3289.3,0.82429924]
[1732286826541,3.03861,3291.0,3289.7,3.7939]
[1732286826837,3.03739,3292.3,3289.7,3.7939]
[1732286826838,3.03838,3291.3,3289.9,0.55]
[1732286827014,3.03843,3291.2,3290.1,0.55]
[1732286827193,0.8154,3291.9,3290.0,0.8106]
[1732286827397,3.03828,3291.4,3290.0,0.8106]
[1732286827704,3.0381,3291.6,3290.2,0.7641]
[1732286828037,3.03785,3291.8,3290.3,0.55]
[1732286828197,3.341635,3291.8,3290.3,0.7979]
[1732286828530,3.341635,3291.8,3290.4,0.55]
[1732286828531,0.303785,3291.8,3290.4,0.55]
[1732286828693,3.03758,3292.1,3290.6,0.55]
[1732286828890,3.03769,3292.0,3290.7,0.82518473]
[1732286829094,3.03776,3291.9,3290.7,0.7948]
[1732286829400,3.03727,3292.5,3290.8,0.55]
[1732286829600,0.303727,3292.4,3291.0,0.7948]
[1732286829906,3.0374,3292.3,3291.0,0.7948]
[1732286830428,3.03674,3293.0,3291.0,0.7948]
[1732286830635,3.0,3292.6,3291.0,0.7948]
[1732286830799,3.384781,3292.9,3291.0,0.7948]
[1732286830995,3.0379,3291.8,3291.0,0.7948]
[1732286831200,3.03802,3291.7,3291.0,0.7948]
[1732286831441,3.03757,3292.1,3291.0,0.7948]
[1732286831607,3.03746,3292.3,3291.0,0.7948]
[1732286831795,3.03738,3292.4,3291.0,0.7948]
[1732286832136,3.0374,3292.3,3291.0,0.7948]
[1732286832335,0.607478,3292.2,3291.0,0.7948]
[1732286832550,0.384781,3292.9,3290.8,0.03038163]
[1732286832551,3.03663,3293.2,3291.6,3.9174454]
[1732286832698,3.03615,3293.7,3291.6,3.9174454]
[1732286832699,3.35299647,3293.1,3291.8,0.8208]
[1732286832899,0.7597,3293.7,3292.0,0.8208]
[1732286833198,3.03728,3292.5,3292.0,0.8208]
[1732286833432,0.303728,3292.4,3290.9,0.55]
[1732286833612,0.303728,3292.4,3291.0,0.8208]
[1732286833814,0.3340958,3292.3,3291.0,0.8208]
[1732286834229,0.55,3292.7,3291.0,0.8208]
[1732286834501,3.03849,3291.1,3291.0,0.8208]
[1732286834706,3.03832,3291.3,3289.7,0.80868845]
[1732286834930,0.303834,3291.2,3289.8,0.7783]
[1732286835147,3.0,3291.7,3289.8,0.80869157]
[1732286835443,3.0,3291.7,3290.2,0.8289]
[1732286835444,0.384859,3291.7,3290.2,0.8289]
[1732286835598,0.7618,3292.7,3290.3,0.8188]
[1732286835803,0.55,3292.6,3290.4,0.55]
[1732286835998,3.03767,3292.0,3290.5,0.55]
[1732286836199,3.46844,3292.5,3290.6,0.8188]
[1732286836200,3.03798,3291.7,3290.6,0.8188]
[1732286836621,3.03819,3291.5,3290.6,0.8188]
[1732286836836,3.03869,3290.9,3290.6,0.8188]
[1732286837044,3.342669,3290.8,3290.6,0.88826193]
[1732286837260,3.03877,3290.8,3290.7,0.06945981]
[1732286837464,3.03877,3290.8,3290.1,0.7612]
[1732286837465,0.303877,3290.8,3290.1,0.7612]
[1732286837620,3.03874,3290.9,3290.1,0.7612]
[1732286837817,3.03859,3291.0,3290.1,0.7612]
[1732286838157,3.342629,3290.9,3290.1,0.7612]
[1732286838318,3.03862,3291.0,3290.1,0.7612]
[1732286838734,3.03842,3291.2,3290.1,0.7612]
[1732286838941,3.0,3291.2,3290.1,0.7612]
[1732286839142,3.603832,3291.2,3290.1,0.7612]
[1732286839339,0.603832,3291.2,3290.1,0.7612]
[1732286839562,3.03785,3291.8,3290.1,0.7612]
[1732286839723,3.8229,3291.9,3290.1,0.7612]
[1732286839923,3.03846,3291.2,3290.1,0.7612]
[1732286840163,3.342306,3291.2,3290.1,0.7612]
[1732286840340,1.174844,3292.4,3290.3,0.7742]
[1732286840548,3.03748,3292.2,3290.5,0.7742]
[1732286840747,3.03774,3292.0,3290.5,0.7742]
[1732286840921,3.03782,3291.9,3290.7,0.7742]
[1732286841232,3.341594,3291.9,3290.7,0.7742]
[1732286841427,3.86493,3292.8,3290.8,0.55]
[1732286841629,3.03729,3292.5,3290.9,0.7917]
[1732286841954,3.03729,3292.5,3290.8,0.55]
[1732286841955,0.386493,3292.7,3291.1,0.7917]
[1732286842262,3.0376,3292.1,3291.1,0.7917]
[1732286842553,0.7756,3293.2,3291.1,0.7917]
[1732286842755,3.03727,3292.5,3291.2,0.58038157]
[1732286842960,3.03739,3292.3,3291.3,0.805]
[1732286843172,3.03748,3292.2,3291.3,0.805]
[1732286843465,3.03801,3291.7,3291.3,0.805]
[1732286843834,0.303748,3292.1,3290.3,0.7644]
[1732286844033,0.8171,3292.2,3290.3,0.7644]
[1732286844451,3.0385,3291.1,3290.3,0.7644]
[1732286844671,3.58757,3292.1,3290.3,0.7644]
[1732286844672,3.03895,3290.7,3290.3,0.7644]
[1732286844986,0.303895,3290.6,3290.3,0.7644]
[1732286845276,3.03902,3290.6,3290.3,0.7644]
[1732286845638,3.03914,3290.4,3290.3,0.7644]
[1732286845869,3.03914,3290.4,3289.2,0.1475352]
[1732286845870,3.0394,3290.2,3289.3,0.8213]
[1732286846084,3.03932,3290.2,3289.5,0.8207]
[1732286846380,3.03943,3290.1,3289.5,0.8207]
[1732286846686,3.03987,3289.7,3289.5,0.8207]
[1732286846839,3.03905,3290.5,3289.5,0.8207]
[1732286847038,3.03923,3290.3,3289.5,0.8207]
[1732286847269,3.03935,3290.2,3289.5,0.8207]
[1732286847640,3.03934,3290.2,3289.5,0.8207]
[1732286848038,3.0395,3290.1,3289.5,0.8207]
[1732286848282,3.03934,3290.2,3289.5,0.8207]
[1732286848573,3.03933,3290.2,3289.5,0.8207]
[1732286848777,3.03948,3290.1,3289.5,0.8207]
[1732286849139,3.03953,3290.0,3289.5,0.8207]
[1732286849974,3.03977,3289.8,3289.5,0.8207]
[1732286850569,3.0398,3289.7,3289.5,0.8207]
[1732286850775,0.30398,3289.6,3289.5,0.8207]
[1732286850980,3.03975,3289.8,3289.5,0.8207]
[1732286851678,3.03905,3290.5,3289.5,0.8207]
[1732286851896,3.03938,3290.2,3289.5,0.8207]
[1732286852106,3.0,3290.7,3289.5,0.8207]
[1732286852401,3.03895,3290.6,3289.5,0.8207]
[1732286852554,0.603895,3290.5,3289.5,0.8207]
[1732286852762,3.04016,3289.3,3289.2,0.1475352]
[1732286852965,3.04005,3289.5,3289.2,0.1475352]
[1732286853403,3.04016,3289.3,3289.2,0.1475352]
[1732286853697,3.04016,3289.3,3287.7,0.03040778]
[1732286853698,0.608021,3289.3,3288.0,0.8295]
[1732286853995,3.04022,3289.3,3288.0,0.8295]
[1732286854157,3.04012,3289.4,3288.2,0.7522]
[1732286854367,3.422872,3289.8,3287.7,0.7522]
[1732286854600,3.0397,3289.8,3287.9,0.7885]
[1732286854766,3.03929,3290.3,3288.2,0.7885]
[1732286854968,0.303929,3290.2,3288.7,0.8036]
[1732286855197,3.343259,3290.2,3289.0,0.8036]
[1732286855407,0.303929,3290.2,3289.2,0.8036]
[1732286855699,3.03907,3290.5,3289.4,0.7955]
[1732286856000,3.03869,3290.9,3289.5,0.55]
[1732286856157,3.03878,3290.8,3289.7,0.55]
[1732286856359,3.03901,3290.6,3289.6,0.7955]
[1732286856584,0.303869,3290.8,3289.7,0.55]
[1732286856786,3.03816,3291.5,3289.9,0.55]
[1732286856973,3.03773,3292.0,3290.3,0.8202]
[1732286857179,0.7533,3292.2,3290.4,0.55]
[1732286857396,3.03767,3292.0,3290.6,0.55]
[1732286857570,0.7533,3292.2,3290.6,0.55]
[1732286857571,3.03748,3292.2,3291.0,0.55]
[1732286857775,0.31640933,3292.2,3291.4,0.7557]
[1732286858015,0.31640933,3292.2,3291.5,0.55]
[1732286858203,0.31640933,3292.2,3291.6,0.7559]
[1732286858371,8.75,3294.4,3291.9,0.55]
[1732286858372,3.03637,3293.4,3291.9,0.55]
[1732286858561,3.03689,3292.9,3291.9,0.55]
[1732286858992,0.31633851,3293.2,3291.9,0.55]
[1732286859173,0.31633851,3293.2,3292.3,0.55]
[1732286859384,0.31633851,3293.2,3292.7,3.0]
[1732286859589,3.03573,3294.1,3292.9,0.55]
[1732286859817,0.303573,3294.0,3292.9,0.55]
[1732286860116,0.7747,3294.6,3293.0,0.8292]
[1732286860303,3.03545,3294.4,3293.1,0.55]
[1732286860615,3.65528924,3294.3,3293.0,0.85956276]
[1732286860776,3.65528924,3294.3,3293.2,4.4674454]
[1732286860777,0.31620424,3294.3,3293.2,4.4674454]
[1732286860978,0.31620424,3294.3,3293.4,0.55]
[1732286861178,3.03453,3295.4,3293.7,0.55]
[1732286861474,0.3161266,3294.8,3294.1,0.55]
[1732286861714,0.7919,3296.1,3294.1,0.55]
[1732286861936,0.31608165,3295.4,3294.1,0.55]
[1732286862213,0.8158,3297.5,3295.3,4.3598]
[1732286862535,3.03241,3297.7,3296.0,0.55]
[1732286862812,0.8158,3298.2,3295.8,3.55]
[1732286862813,0.31902272,3297.6,3296.3,0.55]
[1732286863058,3.03298,3297.1,3296.2,0.8098]
[1732286863222,0.33482478,3297.8,3296.2,0.8098]
[1732286863390,3.03369,3296.4,3296.2,0.8098]
[1732286863591,3.03379,3296.2,3294.3,3.0]
[1732286863778,0.3337159,3296.1,3294.3,3.0]
[1732286863979,3.03398,3296.0,3293.8,3.0]
[1732286864188,0.8199,3296.0,3293.8,3.0]
[1732286864401,3.03421,3295.8,3294.3,3.0]
[1732286864620,3.03421,3295.8,3293.2,0.01]
[1732286864621,3.03445,3295.5,3293.8,3.0]
[1732286864822,3.337691,3295.7,3294.2,3.9174454]
[1732286865101,3.303369,3296.3,3293.9,0.03035146]
[1732286865102,3.03463,3295.3,3293.9,0.03035146]
[1732286865444,0.303463,3295.2,3293.7,3.9174454]
[1732286865635,3.0,3296.1,3293.8,0.03035256]
[1732286865824,3.03479,3295.2,3293.7,3.9174454]
[1732286866155,3.03453,3295.4,3292.6,3.9174454]
[1732286866298,3.9174454,3295.5,3292.6,3.9174454]
[1732286866299,3.03555,3294.3,3292.6,3.9174454]
[1732286866499,3.03536,3294.5,3292.7,0.78266274]
[1732286866719,3.03518,3294.7,3292.7,0.78266274]
[1732286866937,3.33474,3295.2,3293.6,3.9174454]
[1732286867151,3.03445,3295.5,3293.7,0.7523]
[1732286867349,3.03445,3295.5,3293.7,0.78265384]
[1732286867558,0.303445,3295.4,3293.7,0.78265384]
[1732286867716,0.303445,3295.4,3294.3,0.55]
[1732286868035,0.3,3295.8,3294.5,0.55]
[1732286868241,3.03425,3295.7,3294.6,0.7936]
[1732286868417,3.03444,3295.5,3294.6,0.7936]
[1732286868740,0.303425,3295.6,3294.6,0.7936]
[1732286869339,3.03497,3295.0,3293.8,0.8267]
[1732286869697,3.7774,3295.5,3293.8,0.8267]
[1732286869698,0.7774,3295.5,3293.8,0.8267]
[1732286869903,3.03536,3294.5,3293.8,0.8267]
[1732286870259,3.03488,3295.1,3293.8,0.8267]
[1732286870402,0.303488,3295.0,3293.8,0.8570562]
[1732286870605,0.303488,3295.0,3293.8,0.8267]
[1732286870969,3.03499,3294.9,3293.8,0.85705555]
[1732286871124,3.03453,3295.4,3293.8,0.8267]
[1732286871443,3.03517,3294.7,3293.8,0.8267]
[1732286871610,3.9174454,3295.5,3293.8,0.8267]
[1732286871611,3.03509,3294.8,3293.8,0.8267]
[1732286871813,0.303509,3294.7,3293.8,0.8267]
[1732286872312,3.03538,3294.5,3293.8,0.8267]
[1732286872624,3.03534,3294.6,3293.8,0.8267]
[1732286872933,6.03453,3295.4,3293.8,0.8267]
[1732286873133,3.0348,3295.1,3293.8,0.8267]
[1732286873332,3.03557,3294.3,3293.8,0.8267]
[1732286873946,3.0,3295.1,3293.8,0.8267]
[1732286874248,3.03529,3294.6,3293.8,0.8267]
[1732286874455,0.303492,3294.9,3293.2,0.8224]
[1732286874456,3.03646,3293.3,3293.2,0.8224]
[1732286874655,3.0371,3292.7,3291.2,0.03037094]
[1732286874867,3.03748,3292.3,3290.6,3.9174454]
[1732286875012,0.30371,3292.6,3291.1,3.9174454]
[1732286875212,3.0,3293.4,3291.1,3.9174454]
[1732286875432,3.03757,3292.1,3290.6,3.9174454]
[1732286875735,3.0,3293.0,3290.7,0.03037933]
[1732286875736,3.0374,3292.3,3290.7,0.03037933]
[1732286875937,3.0,3293.0,3290.1,0.02]
[1732286875938,3.03783,3291.9,3290.1,3.9174454]
[1732286876144,3.0,3292.7,3290.2,0.03038192]
[1732286876317,3.03777,3291.9,3290.2,0.42212646]
[1732286876513,3.7922,3292.7,3290.2,0.42212646]
[1732286876514,0.7922,3292.7,3290.2,0.42212646]
[1732286876847,0.7922,3292.7,3289.6,0.01]
[1732286876848,3.03821,3291.5,3289.6,3.9174454]
[1732286877154,3.03821,3291.5,3289.7,0.4221306]
[1732286877353,3.03806,3291.6,3289.7,0.4221306]
[1732286877515,3.03824,3291.4,3289.7,0.4221306]
[1732286877716,0.303824,3291.3,3289.9,0.7621]
[1732286877917,0.303824,3291.3,3289.8,0.4339576]
[1732286877918,3.03831,3291.3,3290.1,0.7621]
[1732286878357,3.03841,3291.2,3290.1,0.7621]
[1732286878563,3.03866,3291.0,3290.1,0.7621]
[1732286878866,3.03899,3290.6,3290.1,0.7621]
[1732286879015,3.03915,3290.4,3290.1,0.7621]
[1732286879220,3.03908,3290.5,3290.1,0.7621]
[1732286879417,3.0,3291.4,3290.1,0.7621]
[1732286879620,3.0389,3290.7,3290.1,0.7621]
[1732286879862,3.03868,3290.9,3290.1,0.7621]
[1732286880159,3.03879,3290.8,3290.1,0.7621]
[1732286880663,3.03858,3291.1,3290.1,0.7621]
[1732286880834,3.0,3291.4,3290.1,0.7621]
[1732286881171,3.03902,3290.6,3290.1,0.7621]
[1732286881532,3.03822,3291.4,3290.1,0.7621]
[1732286881733,3.03907,3290.5,3290.1,0.7621]
[1732286881935,3.03888,3290.7,3290.1,0.7621]
[1732286882142,3.03869,3290.9,3290.1,0.7621]
[1732286882641,3.03849,3291.1,3290.1,0.7621]
[1732286882871,3.03895,3290.7,3290.1,0.7621]
[1732286883028,3.03868,3290.9,3290.1,0.7621]
[1732286883231,3.19512295,3292.5,3290.2,0.58039436]
[1732286883551,3.03824,3291.4,3290.5,0.8145]
[1732286883756,3.03739,3292.3,3290.5,0.8145]
[1732286883938,3.03777,3291.9,3290.5,0.8145]
[1732286884136,3.03786,3291.8,3290.5,0.8145]
[1732286884338,3.03787,3291.8,3290.5,0.8145]
[1732286884533,3.9174454,3291.8,3290.5,0.8145]
[1732286884735,3.03881,3290.8,3290.5,0.8145]
[1732286884961,3.03895,3290.6,3290.0,0.7514]
[1732286885165,3.03865,3291.0,3290.0,0.7514]
[1732286885372,3.03869,3290.9,3290.0,0.7514]
[1732286885670,3.54426899,3291.6,3290.0,0.7514]
[1732286885966,3.03841,3291.2,3290.0,0.7514]
[1732286886136,0.50623899,3291.6,3290.0,0.7514]
[1732286886483,3.03898,3290.6,3290.0,0.7514]
[1732286886688,3.03906,3290.5,3290.0,0.7514]
[1732286887273,3.03859,3291.0,3288.3,3.9174454]
[1732286887469,0.55,3291.2,3288.4,0.79620222]
[1732286887470,0.8123,3290.6,3288.4,0.79620222]
[1732286887768,3.03941,3290.2,3288.4,0.7658]
[1732286888067,0.303941,3290.1,3288.6,0.8101]
[1732286888238,0.7838,3291.0,3288.9,0.7675]
[1732286888426,3.03832,3291.3,3289.4,0.7675]
[1732286888629,3.03814,3291.5,3289.6,0.7675]
[1732286888843,3.038,3291.7,3289.9,0.7675]
[1732286889046,3.038,3291.7,3290.1,0.7675]
[1732286889372,0.3038,3291.6,3290.4,0.55]
[1732286889575,3.03745,3292.3,3290.8,0.55]
[1732286889813,3.03728,3292.5,3291.1,0.55]
[1732286889985,3.03746,3292.3,3291.0,0.7675]
[1732286890299,3.03739,3292.3,3291.0,0.7675]
[1732286890506,3.03813,3291.5,3291.0,0.7675]
[1732286890713,3.31630617,3292.5,3291.0,0.7675]
[1732286890888,3.03773,3292.0,3291.0,0.7675]
[1732286891088,0.303773,3291.9,3291.0,0.7675]
[1732286891409,3.03748,3292.2,3291.0,0.7675]
[1732286891703,3.03766,3292.0,3291.0,0.7675]
[1732286891906,3.03746,3292.3,3291.0,0.7675]
[1732286892063,0.42338362,3292.7,3291.4,0.8116]
[1732286892264,0.7755,3293.4,3291.8,0.8116]
[1732286892476,3.03623,3293.6,3292.1,0.55]
[1732286892693,3.03623,3293.6,3292.0,0.8116]
[1732286892694,3.03582,3294.0,3292.3,0.55]
[1732286892864,3.03608,3293.8,3292.4,0.8116]
[1732286893063,0.303608,3293.7,3292.5,0.55]
[1732286893401,3.03593,3293.9,3292.6,0.8116]
[1732286893611,3.03601,3293.8,3292.6,0.8116]
[1732286893768,0.303601,3293.7,3292.6,0.8116]
[1732286894366,3.03571,3294.2,3292.6,0.8116]
[1732286894587,3.03642,3293.4,3292.6,0.8116]
[1732286894765,3.03648,3293.3,3292.6,0.8116]
[1732286895102,3.03628,3293.5,3292.6,0.8116]
[1732286895403,0.7876,3294.1,3292.7,0.55]
[1732286895404,0.303571,3294.1,3292.7,0.55]
[1732286895637,0.7766,3294.6,3292.8,0.8199]
[1732286895777,3.03536,3294.5,3292.8,0.8199]
[1732286896110,0.381196,3294.4,3292.8,0.8199]
[1732286896269,3.03565,3294.2,3292.8,0.8199]
[1732286896611,3.03594,3293.9,3292.8,0.8199]
[1732286897202,3.03596,3293.9,3292.8,0.8199]
[1732286897405,0.7766,3294.6,3292.8,0.8199]
[1732286897406,3.03654,3293.3,3292.8,0.8199]
[1732286897610,3.03619,3293.6,3291.5,0.8157]
[1732286897812,0.8273,3293.7,3291.5,0.8157]
[1732286898185,3.03696,3292.8,3291.5,0.8157]
[1732286898387,3.03658,3293.2,3291.5,0.8157]
[1732286898620,3.03675,3293.0,3291.7,0.782]
[1732286898818,3.03658,3293.2,3291.7,0.782]
[1732286898990,0.8273,3293.7,3291.8,0.03037483]
[1732286899193,0.8273,3293.7,3291.9,0.782]
[1732286899194,3.03686,3292.9,3291.9,0.782]
[1732286899397,3.0,3293.4,3291.9,0.782]
[1732286899619,3.0,3293.4,3290.4,0.01]
[1732286899620,0.7697,3292.9,3290.4,0.786]
[1732286899835,3.03756,3292.2,3290.6,0.786]
[1732286900300,3.03702,3292.7,3290.6,0.786]
[1732286900495,3.03737,3292.4,3290.6,0.786]
[1732286900711,3.341127,3292.3,3290.6,0.786]
[1732286900919,3.03748,3292.2,3290.7,0.55]
[1732286901098,3.341228,3292.2,3290.8,0.8162]
[1732286901424,1.1029,3293.3,3291.2,0.7968]
[1732286901634,0.55,3293.2,3291.4,0.7968]
[1732286901789,3.03758,3292.1,3291.4,0.7968]
[1732286902391,3.03737,3292.4,3291.4,0.7968]
[1732286902842,0.52703454,3293.1,3290.4,0.03038184]
[1732286902843,3.03694,3292.8,3291.6,0.8219]
[1732286903124,0.303694,3292.8,3291.6,0.8219]
[1732286903327,3.03703,3292.7,3291.6,0.8219]
[1732286903628,3.03671,3293.1,3291.7,0.03037635]
[1732286903830,3.03636,3293.5,3291.9,0.55]
[1732286903987,3.03657,3293.2,3292.0,0.8272]
[1732286904349,3.03682,3293.0,3292.0,0.8272]
[1732286904556,3.03675,3293.0,3292.0,0.8272]
[1732286904844,0.303675,3292.9,3292.0,0.8272]
[1732286905348,3.03685,3292.9,3292.0,0.8272]
[1732286905845,3.03667,3293.1,3292.0,0.8272]
[1732286906048,0.81,3293.7,3292.0,0.8272]
[1732286906346,0.81,3293.7,3291.3,3.9174454]
[1732286906347,3.03638,3293.4,3292.2,0.7959]
[1732286907134,3.03613,3293.7,3292.2,0.7959]
[1732286907337,3.03645,3293.4,3292.2,0.7959]
[1732286907533,3.03666,3293.1,3292.2,0.7959]
[1732286907742,3.03688,3292.9,3292.2,0.7959]
[1732286908044,3.03723,3292.5,3292.2,0.7959]
[1732286908232,3.644706,3292.5,3291.0,0.8041]
[1732286908443,3.03728,3292.5,3291.0,0.8041]
[1732286908770,3.0372,3292.5,3291.2,0.8041]
[1732286909054,3.03704,3292.7,3291.2,0.8041]
[1732286909354,0.303704,3292.6,3291.2,0.8041]
[1732286909524,0.303704,3292.6,3291.3,0.55]
[1732286909857,0.8141,3293.4,3291.4,0.8305]
[1732286910023,3.03629,3293.5,3291.7,0.55]
[1732286910351,3.03612,3293.7,3292.1,0.8305]
[1732286910561,3.035,3294.9,3292.5,0.8305]
[1732286910725,3.035,3294.9,3292.0,0.55]
[1732286910726,3.03592,3293.9,3292.7,0.8305]
[1732286910928,3.9174454,3294.8,3292.7,0.8305]
[1732286910929,3.03602,3293.8,3292.7,0.8305]
[1732286911222,3.03627,3293.6,3292.7,0.8305]
[1732286911423,3.03643,3293.4,3292.7,0.8305]
[1732286911632,0.8196,3294.1,3292.7,0.8305]
[1732286911936,3.03623,3293.6,3292.7,0.8305]
[1732286912152,3.03603,3293.8,3292.7,0.8305]
[1732286912458,3.03603,3293.8,3291.8,3.9174454]
[1732286912459,3.03619,3293.6,3292.1,0.779]
[1732286912640,3.03673,3293.1,3292.1,0.779]
[1732286912945,3.03637,3293.4,3292.1,0.779]
[1732286913152,0.45246344,3293.7,3292.1,0.779]
[1732286913313,3.03626,3293.6,3292.1,0.779]
[1732286913625,3.03633,3293.5,3292.1,0.779]
[1732286913822,3.340013,3293.4,3292.1,0.779]
[1732286914010,0.303633,3293.4,3292.1,0.779]
[1732286914212,3.03588,3294.0,3292.6,0.55]
[1732286914459,3.03588,3294.0,3292.8,0.8222]
[1732286914769,3.03569,3294.2,3292.8,0.85256498]
[1732286914930,3.0355,3294.4,3293.0,0.55]
[1732286915124,3.339047,3294.4,3293.1,0.7946]
[1732286915557,3.03561,3294.3,3293.1,0.7946]
[1732286915762,3.0348,3295.2,3293.4,3.55]
[1732286915971,3.35046532,3295.6,3293.8,0.55]
[1732286916125,0.31608532,3295.6,3294.6,0.55]
[1732286916324,3.03306,3297.0,3294.8,0.8273]
[1732286916325,3.03353,3296.5,3294.8,0.8273]
[1732286916526,3.03379,3296.2,3295.1,0.55]
[1732286916826,3.03365,3296.4,3295.2,0.8345423]
[1732286917059,3.03379,3296.2,3295.2,0.8042]
[1732286917263,3.03388,3296.1,3295.2,0.8042]
[1732286917430,3.03438,3295.6,3295.2,0.8042]
[1732286917767,3.03424,3295.8,3295.2,0.8042]
[1732286917920,3.03408,3295.9,3295.2,0.8042]
[1732286918124,3.337578,3295.8,3295.2,0.8042]
[1732286918335,3.03357,3296.5,3295.2,0.8042]
[1732286918558,3.03413,3295.9,3295.2,0.8042]
[1732286918746,3.0339,3296.1,3295.2,0.8042]
[1732286918946,3.03358,3296.5,3295.2,0.8042]
[1732286919167,0.303358,3296.4,3295.2,0.8042]
[1732286919366,0.303358,3296.4,3294.5,3.0]
[1732286919367,0.303358,3296.4,3295.4,0.7717]
[1732286919568,3.03306,3297.0,3295.4,0.7717]
[1732286919865,0.7628,3297.3,3295.5,0.03034042]
[1732286919866,3.03332,3296.8,3295.5,0.03034042]
[1732286920034,3.03332,3296.8,3295.4,0.7717]
[1732286920229,0.31602232,3297.7,3295.6,0.7544]
[1732286920430,3.34843232,3297.7,3296.0,0.7544]
[1732286920751,3.34843232,3297.7,3296.2,0.7544]
[1732286920752,3.03341,3296.7,3296.2,0.7544]
[1732286920953,6.9493354,3298.3,3296.2,0.7544]
[1732286921155,3.03276,3297.4,3296.2,0.7544]
[1732286921330,3.03201,3298.2,3296.2,0.7544]
[1732286921530,3.03195,3298.2,3296.3,0.55]
[1732286921733,3.03243,3297.7,3296.4,0.7918]
[1732286922045,0.7989,3298.4,3295.9,3.9174454]
[1732286922046,0.9325352,3299.1,3296.9,3.9174454]
[1732286922247,0.9325352,3299.1,3297.3,0.7878]
[1732286922435,3.03193,3298.3,3297.3,0.7878]
[1732286922749,3.03169,3298.5,3297.3,0.7878]
[1732286923074,0.39636152,3299.0,3297.3,0.7878]
[1732286923256,0.9325352,3299.1,3297.3,0.7878]
[1732286923257,3.0323,3297.9,3297.3,0.7878]
[1732286923463,3.03251,3297.6,3297.3,0.7878]
[1732286923772,3.03187,3298.3,3297.3,0.7878]
[1732286924133,3.03195,3298.2,3297.3,0.7878]
[1732286924561,3.0,3298.7,3297.3,0.7878]
[1732286924766,0.1475352,3299.1,3297.5,3.9174454]
[1732286924978,0.1475352,3299.1,3297.9,0.7799]
[1732286925132,3.03132,3298.9,3297.9,0.7799]
[1732286925472,3.03169,3298.5,3297.9,0.7799]
[1732286925638,0.1475352,3299.1,3297.9,0.7799]
[1732286925963,3.03187,3298.3,3297.9,0.7799]
[1732286926756,3.03177,3298.4,3297.9,0.7799]
[1732286926967,3.1475352,3299.1,3296.5,1.3289]
[1732286927172,3.03222,3298.0,3296.9,0.55]
[1732286927478,3.03228,3297.9,3296.8,0.7789]
[1732286927984,3.03177,3298.4,3296.8,0.7789]
[1732286928151,3.03204,3298.1,3296.8,0.7789]
[1732286928354,3.03214,3298.0,3296.8,0.7789]
[1732286928681,3.335454,3297.9,3296.8,0.7789]
[1732286928981,0.3,3298.7,3295.9,0.03032936]
[1732286928982,0.3,3298.7,3297.0,0.7671]
[1732286929278,3.03203,3298.2,3297.2,0.7671]
[1732286929485,3.0,3298.7,3297.2,0.7671]
[1732286929782,3.03226,3297.9,3297.2,0.7671]
[1732286929983,3.03238,3297.8,3297.2,0.7671]
[1732286930146,3.03205,3298.1,3297.2,0.7671]
[1732286930647,3.03237,3297.8,3297.2,0.7671]
[1732286930869,0.606469,3297.8,3297.2,0.7671]
[1732286931038,3.03214,3298.0,3297.2,0.7671]
[1732286931236,3.03224,3297.9,3297.2,0.7671]
[1732286931474,3.03205,3298.1,3297.2,0.7671]
[1732286931837,3.33163,3298.6,3297.2,0.7671]
[1732286932041,3.0323,3297.9,3297.2,0.7671]
[1732286932242,3.03215,3298.0,3297.2,0.7671]
[1732286932473,3.0324,3297.8,3297.2,0.7671]
[1732286932682,0.30324,3297.7,3297.2,0.7671]
[1732286932984,3.03214,3298.0,3297.2,0.7671]
[1732286933200,3.03239,3297.8,3297.2,0.7671]
[1732286933387,3.03278,3297.3,3297.2,0.7671]
[1732286933678,3.03278,3297.3,3295.3,3.9174454]